[Event "Titled Tuesday Blitz June 6 Late 2023"]
[White "Baskakov, Egor"]
[Black "Papayan, Oleg"]
[WhiteFideId "24197866"]
[BlackFideId "4193911"]
[WhiteElo "2225"]
[BlackElo "2167"]
[Result "1-0"]
[Round "1"]
[TimeControl "180+2"]
[Date "2023.06.07"]
[WhiteClock "0:00:29"]
[BlackClock "0:00:01"]
[Board "42"]

1. e4 {[%clk 0:03:00]}  e5 {[%clk 0:02:59]} 2. Nc3 {[%clk 0:03:00]}  Nf6 {[%clk 0:02:54]} 3. g3 {[%clk 0:03:00]}  d5 {[%clk 0:02:53]} 4. exd5 {[%clk 0:03:01]}  Nxd5 {[%clk 0:02:53]} 5. Bg2 {[%clk 0:03:02]}  Nxc3 {[%clk 0:02:54]} 6. bxc3 {[%clk 0:03:03]}  Bd6 {[%clk 0:02:52]} 7. d3 {[%clk 0:03:03]}  O-O {[%clk 0:02:53]} 8. Ne2 {[%clk 0:03:03]}  Nc6 {[%clk 0:02:51]} 9. Rb1 {[%clk 0:03:03]}  h5 {[%clk 0:02:32]} 10. h3 {[%clk 0:02:52]}  a5 {[%clk 0:02:31]} 11. O-O {[%clk 0:02:49]}  h4 {[%clk 0:02:31]} 12. g4 {[%clk 0:02:49]}  Ra6 {[%clk 0:02:31]} 13. Be3 {[%clk 0:02:45]}  f5 {[%clk 0:01:57]} 14. gxf5 {[%clk 0:02:44]}  Rxf5 {[%clk 0:01:58]} 15. f4 {[%clk 0:02:41]}  exf4 {[%clk 0:01:54]} 16. Nxf4 {[%clk 0:02:30]}  Qe8 {[%clk 0:01:15]} 17. Bd2 {[%clk 0:02:17]}  Qf7 {[%clk 0:00:48]} 18. Nd5 {[%clk 0:01:59]}  Rxf1+ {[%clk 0:00:32]} 19. Qxf1 {[%clk 0:02:00]}  Be6 {[%clk 0:00:27]} 20. Qxf7+ {[%clk 0:01:56]}  Bxf7 {[%clk 0:00:28]} 21. Rxb7 {[%clk 0:01:57]}  Ra7 {[%clk 0:00:15]} 22. Rxa7 {[%clk 0:01:57]}  Nxa7 {[%clk 0:00:16]} 23. c4 {[%clk 0:01:57]}  Bc5+ {[%clk 0:00:13]} 24. Kf1 {[%clk 0:01:55]}  Nc6 {[%clk 0:00:11]} 25. Nxc7 {[%clk 0:01:51]}  Nd4 {[%clk 0:00:12]} 26. Bxa5 {[%clk 0:01:41]}  Nxc2 {[%clk 0:00:11]} 27. Bd2 {[%clk 0:01:41]}  Nb4 {[%clk 0:00:11]} 28. a4 {[%clk 0:01:16]}  Nxd3 {[%clk 0:00:09]} 29. Bd5 {[%clk 0:01:17]}  Nb2 {[%clk 0:00:07]} 30. a5 {[%clk 0:00:49]}  Nxc4 {[%clk 0:00:07]} 31. Bxf7+ {[%clk 0:00:39]}  Kxf7 {[%clk 0:00:08]} 32. Bc3 {[%clk 0:00:40]}  g5 {[%clk 0:00:04]} 33. a6 {[%clk 0:00:36]}  Ke7 {[%clk 0:00:02]} 34. Bb4 {[%clk 0:00:29]}  Bxb4 {[%clk 0:00:01]} 35. a7 {[%clk 0:00:29]}  Nb6 {[%clk 0:00:02]} 36. Nd5+ {[%clk 0:00:29]}  Kd6 {[%clk 0:00:01]} 37. Nxb6 {[%clk 0:00:29]} 1-0


[Site "https://www.chess.com"]

[Event "Titled Tuesday Blitz June 6 Late 2023"]
[White "Rengifo Blancas, Renzo Jhonathan"]
[Black "Visakh N R"]
[WhiteFideId "3807185"]
[BlackFideId "25012223"]
[WhiteElo "2085"]
[BlackElo "2466"]
[Result "0-1"]
[Round "1"]
[TimeControl "180+2"]
[Date "2023.06.07"]
[WhiteClock "0:00:06"]
[BlackClock "0:01:11"]
[Board "43"]

1. e4 {[%clk 0:03:00]}  c5 {[%clk 0:02:53]} 2. c3 {[%clk 0:03:00]}  d5 {[%clk 0:02:38]} 3. exd5 {[%clk 0:02:59]}  Nf6 {[%clk 0:02:38]} 4. d4 {[%clk 0:03:00]}  cxd4 {[%clk 0:02:38]} 5. cxd4 {[%clk 0:02:46]}  g6 {[%clk 0:02:27]} 6. Nc3 {[%clk 0:02:43]}  Bg7 {[%clk 0:02:27]} 7. Nf3 {[%clk 0:02:43]}  O-O {[%clk 0:02:27]} 8. Bc4 {[%clk 0:02:43]}  Nbd7 {[%clk 0:02:27]} 9. Bb3 {[%clk 0:02:44]}  Nb6 {[%clk 0:02:28]} 10. O-O {[%clk 0:02:44]}  Nfxd5 {[%clk 0:02:28]} 11. h3 {[%clk 0:02:43]}  Be6 {[%clk 0:02:27]} 12. Be3 {[%clk 0:02:42]}  Rc8 {[%clk 0:02:26]} 13. Qe2 {[%clk 0:02:41]}  Nxc3 {[%clk 0:02:11]} 14. bxc3 {[%clk 0:02:42]}  Bc4 {[%clk 0:02:12]} 15. Bxc4 {[%clk 0:02:41]}  Nxc4 {[%clk 0:02:13]} 16. Rab1 {[%clk 0:02:36]}  Qd5 {[%clk 0:02:10]} 17. a4 {[%clk 0:02:18]}  Rfe8 {[%clk 0:02:03]} 18. Rb5 {[%clk 0:02:17]}  Qe4 {[%clk 0:02:02]} 19. Ng5 {[%clk 0:01:49]}  Qc6 {[%clk 0:02:00]} 20. Rc5 {[%clk 0:01:16]}  Qxa4 {[%clk 0:01:59]} 21. Rxc8 {[%clk 0:00:42]}  Rxc8 {[%clk 0:01:55]} 22. Qf3 {[%clk 0:00:41]}  Nd6 {[%clk 0:01:55]} 23. Bf4 {[%clk 0:00:40]}  Qc6 {[%clk 0:01:53]} 24. Bxd6 {[%clk 0:00:33]}  Qxf3 {[%clk 0:01:52]} 25. Nxf3 {[%clk 0:00:29]}  exd6 {[%clk 0:01:53]} 26. Rb1 {[%clk 0:00:30]}  b6 {[%clk 0:01:48]} 27. Ra1 {[%clk 0:00:30]}  Rc7 {[%clk 0:01:45]} 28. Kf1 {[%clk 0:00:28]}  f6 {[%clk 0:01:20]} 29. Ke2 {[%clk 0:00:29]}  d5 {[%clk 0:01:21]} 30. Kd3 {[%clk 0:00:29]}  Kf7 {[%clk 0:01:21]} 31. Ne1 {[%clk 0:00:25]}  Ke6 {[%clk 0:01:14]} 32. Nc2 {[%clk 0:00:25]}  Kd6 {[%clk 0:01:15]} 33. Ne3 {[%clk 0:00:19]}  Bh6 {[%clk 0:01:14]} 34. Ng4 {[%clk 0:00:18]}  Bg5 {[%clk 0:01:14]} 35. g3 {[%clk 0:00:18]}  f5 {[%clk 0:01:14]} 36. Ne5 {[%clk 0:00:18]}  Bf6 {[%clk 0:01:14]} 37. f4 {[%clk 0:00:14]}  Bxe5 {[%clk 0:01:14]} 38. fxe5+ {[%clk 0:00:14]}  Ke6 {[%clk 0:01:14]} 39. Ra6 {[%clk 0:00:15]}  g5 {[%clk 0:01:14]} 40. Kd2 {[%clk 0:00:11]}  f4 {[%clk 0:01:14]} 41. g4 {[%clk 0:00:11]}  f3 {[%clk 0:01:11]} 42. Ra1 {[%clk 0:00:12]}  a5 {[%clk 0:01:11]} 43. Rf1 {[%clk 0:00:11]}  Rf7 {[%clk 0:01:11]} 44. Ke3 {[%clk 0:00:11]}  f2 {[%clk 0:01:11]} 45. Ke2 {[%clk 0:00:06]}  a4 {[%clk 0:01:11]} 0-1


[Site "https://www.chess.com"]

[Event "Titled Tuesday Blitz June 6 Late 2023"]
[White "Perez Ponsa, Federico"]
[Black "Seletsky, Grigory"]
[WhiteFideId "117927"]
[BlackFideId "14112191"]
[WhiteElo "2590"]
[BlackElo "2491"]
[Result "1-0"]
[Round "1"]
[TimeControl "180+2"]
[Date "2023.06.07"]
[WhiteClock "0:00:34"]
[BlackClock "0:01:04"]
[Board "48"]

1. e4 {[%clk 0:02:54]}  c5 {[%clk 0:02:58]} 2. Nf3 {[%clk 0:02:50]}  d6 {[%clk 0:02:57]} 3. d4 {[%clk 0:02:50]}  cxd4 {[%clk 0:02:57]} 4. Nxd4 {[%clk 0:02:46]}  Nf6 {[%clk 0:02:57]} 5. Nc3 {[%clk 0:02:44]}  a6 {[%clk 0:02:57]} 6. Be2 {[%clk 0:02:41]}  e5 {[%clk 0:02:56]} 7. Nb3 {[%clk 0:02:42]}  Be6 {[%clk 0:02:56]} 8. f4 {[%clk 0:02:40]}  Qc7 {[%clk 0:02:52]} 9. g4 {[%clk 0:02:38]}  exf4 {[%clk 0:02:49]} 10. g5 {[%clk 0:02:34]}  Nfd7 {[%clk 0:02:47]} 11. Bxf4 {[%clk 0:02:34]}  Be7 {[%clk 0:02:39]} 12. Qd2 {[%clk 0:02:32]}  O-O {[%clk 0:02:37]} 13. O-O-O {[%clk 0:02:31]}  Ne5 {[%clk 0:02:37]} 14. Nd4 {[%clk 0:02:10]}  Nbd7 {[%clk 0:02:32]} 15. Nf5 {[%clk 0:02:09]}  Bxf5 {[%clk 0:02:02]} 16. Nd5 {[%clk 0:02:08]}  Qd8 {[%clk 0:02:01]} 17. exf5 {[%clk 0:02:08]}  Rc8 {[%clk 0:01:49]} 18. Nxe7+ {[%clk 0:01:49]}  Qxe7 {[%clk 0:01:47]} 19. Qxd6 {[%clk 0:01:49]}  Qe8 {[%clk 0:01:42]} 20. Rhe1 {[%clk 0:01:45]}  Rc6 {[%clk 0:01:41]} 21. Qd4 {[%clk 0:01:30]}  f6 {[%clk 0:01:32]} 22. gxf6 {[%clk 0:01:24]}  gxf6 {[%clk 0:01:31]} 23. Rg1+ {[%clk 0:01:15]}  Kh8 {[%clk 0:01:30]} 24. Bh6 {[%clk 0:01:14]}  Rg8 {[%clk 0:01:30]} 25. Rxg8+ {[%clk 0:01:12]}  Qxg8 {[%clk 0:01:28]} 26. Rg1 {[%clk 0:01:12]}  Qxa2 {[%clk 0:01:15]} 27. Bg7+ {[%clk 0:01:11]}  Kg8 {[%clk 0:01:14]} 28. Bxf6+ {[%clk 0:01:12]}  Kf7 {[%clk 0:01:13]} 29. Bxe5 {[%clk 0:01:01]}  Nxe5 {[%clk 0:01:13]} 30. Bh5+ {[%clk 0:00:46]}  Kf6 {[%clk 0:01:11]} 31. Qd8+ {[%clk 0:00:41]}  Kxf5 {[%clk 0:01:10]} 32. Qg5+ {[%clk 0:00:36]}  Ke6 {[%clk 0:01:06]} 33. Qg8+ {[%clk 0:00:35]}  Kf5 {[%clk 0:01:04]} 34. Qxa2 {[%clk 0:00:34]} 1-0


[Site "https://www.chess.com"]

[Event "Titled Tuesday Blitz June 6 Late 2023"]
[White "Lima, Kleyton Alcantara"]
[Black "Hambleton, Aman"]
[WhiteFideId "22718397"]
[BlackFideId "2606577"]
[WhiteElo "2009"]
[BlackElo "2511"]
[Result "0-1"]
[Round "1"]
[TimeControl "180+2"]
[Date "2023.06.07"]
[WhiteClock "0:01:21"]
[BlackClock "0:00:51"]
[Board "51"]

1. e4 {[%clk 0:03:00]}  c5 {[%clk 0:03:00]} 2. Nf3 {[%clk 0:02:59]}  e6 {[%clk 0:03:00]} 3. d4 {[%clk 0:03:00]}  cxd4 {[%clk 0:03:01]} 4. Nxd4 {[%clk 0:03:00]}  Nc6 {[%clk 0:03:01]} 5. Nc3 {[%clk 0:03:01]}  a6 {[%clk 0:03:00]} 6. Nxc6 {[%clk 0:03:00]}  bxc6 {[%clk 0:03:01]} 7. Bd3 {[%clk 0:03:01]}  d5 {[%clk 0:03:02]} 8. O-O {[%clk 0:02:59]}  Nf6 {[%clk 0:03:01]} 9. e5 {[%clk 0:02:59]}  Nd7 {[%clk 0:03:02]} 10. Qe2 {[%clk 0:03:00]}  Nc5 {[%clk 0:03:00]} 11. Re1 {[%clk 0:02:59]}  Be7 {[%clk 0:02:58]} 12. Qg4 {[%clk 0:02:56]}  g6 {[%clk 0:02:56]} 13. Bh6 {[%clk 0:02:51]}  Nxd3 {[%clk 0:02:55]} 14. cxd3 {[%clk 0:02:51]}  c5 {[%clk 0:02:50]} 15. Rac1 {[%clk 0:02:50]}  Bd7 {[%clk 0:02:48]} 16. Bg7 {[%clk 0:02:43]}  Rg8 {[%clk 0:02:42]} 17. Bf6 {[%clk 0:02:42]}  Rc8 {[%clk 0:02:04]} 18. Qh4 {[%clk 0:02:32]}  h5 {[%clk 0:02:01]} 19. b3 {[%clk 0:02:29]}  Bc6 {[%clk 0:01:54]} 20. d4 {[%clk 0:02:23]}  g5 {[%clk 0:01:36]} 21. Bxe7 {[%clk 0:01:53]}  Qxe7 {[%clk 0:00:56]} 22. Qxh5 {[%clk 0:01:51]}  cxd4 {[%clk 0:00:57]} 23. Ne2 {[%clk 0:01:38]}  d3 {[%clk 0:00:57]} 24. Qh7 {[%clk 0:01:38]}  Rg6 {[%clk 0:00:58]} 25. Rxc6 {[%clk 0:01:22]}  Rxc6 {[%clk 0:00:52]} 26. Nd4 {[%clk 0:01:22]}  d2 {[%clk 0:00:53]} 27. Rd1 {[%clk 0:01:20]}  Rc1 {[%clk 0:00:53]} 28. Qh8+ {[%clk 0:01:20]}  Qf8 {[%clk 0:00:51]} 29. Qh5 {[%clk 0:01:21]}  g4 {[%clk 0:00:51]} 0-1


[Site "https://www.chess.com"]

[Event "Titled Tuesday Blitz June 6 Late 2023"]
[White "Tejedor Fuente, Enrique"]
[Black "Luong Phuong Hanh"]
[WhiteFideId "2299100"]
[BlackFideId "12401013"]
[WhiteElo "2496"]
[BlackElo "2081"]
[Result "1-0"]
[Round "1"]
[TimeControl "180+2"]
[Date "2023.06.07"]
[WhiteClock "0:00:05"]
[BlackClock "0:00:01"]
[Board "56"]

1. b3 {[%clk 0:02:56]}  e5 {[%clk 0:02:59]} 2. Bb2 {[%clk 0:02:50]}  d6 {[%clk 0:02:59]} 3. e3 {[%clk 0:02:44]}  g6 {[%clk 0:02:58]} 4. d4 {[%clk 0:02:42]}  Bg7 {[%clk 0:02:59]} 5. Nf3 {[%clk 0:02:39]}  Nc6 {[%clk 0:02:52]} 6. Bb5 {[%clk 0:02:33]}  Bd7 {[%clk 0:02:52]} 7. O-O {[%clk 0:02:32]}  Nge7 {[%clk 0:02:49]} 8. d5 {[%clk 0:02:21]}  Nb8 {[%clk 0:02:30]} 9. a4 {[%clk 0:02:17]}  O-O {[%clk 0:02:29]} 10. e4 {[%clk 0:02:14]}  Bg4 {[%clk 0:02:26]} 11. Be2 {[%clk 0:02:09]}  Nd7 {[%clk 0:02:26]} 12. a5 {[%clk 0:02:06]}  Nc5 {[%clk 0:02:23]} 13. Nfd2 {[%clk 0:02:04]}  Bd7 {[%clk 0:02:08]} 14. b4 {[%clk 0:02:00]}  Na4 {[%clk 0:02:03]} 15. Bc1 {[%clk 0:01:59]}  b5 {[%clk 0:01:56]} 16. c4 {[%clk 0:01:48]}  a6 {[%clk 0:01:44]} 17. Qc2 {[%clk 0:01:40]}  c6 {[%clk 0:01:43]} 18. dxc6 {[%clk 0:01:32]}  Nxc6 {[%clk 0:01:36]} 19. Rxa4 {[%clk 0:01:06]}  Nd4 {[%clk 0:01:32]} 20. Qd1 {[%clk 0:01:05]}  bxa4 {[%clk 0:01:31]} 21. Nc3 {[%clk 0:01:06]}  Rb8 {[%clk 0:01:26]} 22. Ba3 {[%clk 0:01:03]}  Bc6 {[%clk 0:01:08]} 23. Bd3 {[%clk 0:01:03]}  Qg5 {[%clk 0:00:54]} 24. Kh1 {[%clk 0:00:58]}  Bh6 {[%clk 0:00:53]} 25. Nf3 {[%clk 0:00:53]}  Qg4 {[%clk 0:00:52]} 26. Nxd4 {[%clk 0:00:49]}  Qxd1 {[%clk 0:00:53]} 27. Rxd1 {[%clk 0:00:45]}  exd4 {[%clk 0:00:53]} 28. Ne2 {[%clk 0:00:45]}  Rfe8 {[%clk 0:00:50]} 29. f3 {[%clk 0:00:37]}  Be3 {[%clk 0:00:49]} 30. Bb1 {[%clk 0:00:29]}  Bd7 {[%clk 0:00:23]} 31. Nxd4 {[%clk 0:00:27]}  f5 {[%clk 0:00:21]} 32. h3 {[%clk 0:00:22]}  fxe4 {[%clk 0:00:20]} 33. Bxe4 {[%clk 0:00:22]}  Bf4 {[%clk 0:00:09]} 34. Bd5+ {[%clk 0:00:20]}  Kg7 {[%clk 0:00:09]} 35. Be4 {[%clk 0:00:19]}  Rbc8 {[%clk 0:00:08]} 36. Bb2 {[%clk 0:00:18]}  Kh6 {[%clk 0:00:07]} 37. Bd3 {[%clk 0:00:16]}  Be5 {[%clk 0:00:06]} 38. Bc1+ {[%clk 0:00:14]}  Kg7 {[%clk 0:00:06]} 39. Nc2 {[%clk 0:00:12]}  Be6 {[%clk 0:00:06]} 40. Na3 {[%clk 0:00:11]}  Bc3 {[%clk 0:00:05]} 41. b5 {[%clk 0:00:06]}  Bxa5 {[%clk 0:00:05]} 42. bxa6 {[%clk 0:00:06]}  Bc3 {[%clk 0:00:05]} 43. Nb5 {[%clk 0:00:06]}  Bf6 {[%clk 0:00:05]} 44. Nxd6 {[%clk 0:00:05]}  Red8 {[%clk 0:00:03]} 45. Nxc8 {[%clk 0:00:05]}  Rxc8 {[%clk 0:00:04]} 46. Ba3 {[%clk 0:00:04]}  Ra8 {[%clk 0:00:04]} 47. c5 {[%clk 0:00:04]}  Be7 {[%clk 0:00:04]} 48. Bb5 {[%clk 0:00:03]}  Kf7 {[%clk 0:00:05]} 49. Re1 {[%clk 0:00:03]}  Rc8 {[%clk 0:00:05]} 50. a7 {[%clk 0:00:02]}  Ra8 {[%clk 0:00:04]} 51. Bxa4 {[%clk 0:00:03]}  Rxa7 {[%clk 0:00:04]} 52. Re4 {[%clk 0:00:03]}  Bf5 {[%clk 0:00:04]} 53. Rf4 {[%clk 0:00:03]}  Kg7 {[%clk 0:00:04]} 54. Bb2+ {[%clk 0:00:03]}  Kh6 {[%clk 0:00:05]} 55. g4 {[%clk 0:00:03]}  Bg5 {[%clk 0:00:06]} 56. Rc4 {[%clk 0:00:02]}  Bd3 {[%clk 0:00:06]} 57. Rd4 {[%clk 0:00:02]}  Be2 {[%clk 0:00:06]} 58. Kg2 {[%clk 0:00:01]}  Rf7 {[%clk 0:00:05]} 59. c6 {[%clk 0:00:01]}  Bxf3+ {[%clk 0:00:05]} 60. Kg3 {[%clk 0:00:02]}  Bxc6 {[%clk 0:00:06]} 61. Bxc6 {[%clk 0:00:01]}  Be3 {[%clk 0:00:06]} 62. Kg2 {[%clk 0:00:01]}  Bxd4 {[%clk 0:00:06]} 63. Bxd4 {[%clk 0:00:01]}  g5 {[%clk 0:00:07]} 64. Be3 {[%clk 0:00:01]}  Rf6 {[%clk 0:00:07]} 65. Bd5 {[%clk 0:00:01]}  Rd6 {[%clk 0:00:07]} 66. Bf3 {[%clk 0:00:02]}  Rd3 {[%clk 0:00:07]} 67. Bf2 {[%clk 0:00:03]}  Rd2 {[%clk 0:00:07]} 68. Kg3 {[%clk 0:00:03]}  Rd3 {[%clk 0:00:07]} 69. Kg2 {[%clk 0:00:02]}  Rc3 {[%clk 0:00:07]} 70. Be1 {[%clk 0:00:02]}  Rc2+ {[%clk 0:00:08]} 71. Kf1 {[%clk 0:00:02]}  Rc4 {[%clk 0:00:08]} 72. Be2 {[%clk 0:00:02]}  Rf4+ {[%clk 0:00:09]} 73. Bf2 {[%clk 0:00:02]}  Rb4 {[%clk 0:00:09]} 74. Ke1 {[%clk 0:00:03]}  Rb1+ {[%clk 0:00:09]} 75. Bd1 {[%clk 0:00:03]}  Rb7 {[%clk 0:00:09]} 76. Ke2 {[%clk 0:00:03]}  Rd7 {[%clk 0:00:09]} 77. Be3 {[%clk 0:00:04]}  Rc7 {[%clk 0:00:09]} 78. Bb3 {[%clk 0:00:04]}  Rc3 {[%clk 0:00:09]} 79. Bd5 {[%clk 0:00:04]}  Ra3 {[%clk 0:00:09]} 80. Kf3 {[%clk 0:00:04]}  Rc3 {[%clk 0:00:08]} 81. Be4 {[%clk 0:00:04]}  Ra3 {[%clk 0:00:08]} 82. h4 {[%clk 0:00:05]}  Kg7 {[%clk 0:00:02]} 83. hxg5 {[%clk 0:00:05]}  Rb3 {[%clk 0:00:01]} 84. Kf4 {[%clk 0:00:05]}  Ra3 {[%clk 0:00:01]} 85. Bd4+ {[%clk 0:00:05]}  Kg8 {[%clk 0:00:02]} 86. Bc5 {[%clk 0:00:05]}  Ra5 {[%clk 0:00:01]} 87. Bd5+ {[%clk 0:00:05]}  Kg7 {[%clk 0:00:01]} 88. Bd4+ {[%clk 0:00:05]}  Kf8 {[%clk 0:00:01]} 89. Ke4 {[%clk 0:00:05]}  Ra1 {[%clk 0:00:01]} 90. Bxa1 {[%clk 0:00:05]} 1-0


[Site "https://www.chess.com"]

[Event "Titled Tuesday Blitz June 6 Late 2023"]
[White "Eidelman, Gabriel"]
[Black "Gadimbayli, Abdulla"]
[WhiteFideId "30910544"]
[BlackFideId "13404938"]
[WhiteElo "2453"]
[BlackElo "2386"]
[Result "0-1"]
[Round "1"]
[TimeControl "180+2"]
[Date "2023.06.07"]
[WhiteClock "0:01:02"]
[BlackClock "0:02:06"]
[Board "57"]

1. Nf3 {[%clk 0:02:55]}  g6 {[%clk 0:02:55]} 2. g3 {[%clk 0:02:53]}  Bg7 {[%clk 0:02:55]} 3. Bg2 {[%clk 0:02:54]}  d5 {[%clk 0:02:56]} 4. O-O {[%clk 0:02:54]}  c5 {[%clk 0:02:56]} 5. d3 {[%clk 0:02:54]}  Nc6 {[%clk 0:02:56]} 6. c4 {[%clk 0:02:53]}  Nf6 {[%clk 0:02:56]} 7. cxd5 {[%clk 0:02:43]}  Nxd5 {[%clk 0:02:56]} 8. a3 {[%clk 0:02:44]}  O-O {[%clk 0:02:56]} 9. Qc2 {[%clk 0:02:44]}  Bg4 {[%clk 0:02:55]} 10. Nc3 {[%clk 0:02:44]}  Bxf3 {[%clk 0:02:55]} 11. Bxf3 {[%clk 0:02:43]}  Nd4 {[%clk 0:02:55]} 12. Qd1 {[%clk 0:02:31]}  Nxc3 {[%clk 0:02:51]} 13. bxc3 {[%clk 0:02:25]}  Nxf3+ {[%clk 0:02:51]} 14. exf3 {[%clk 0:02:26]}  Bxc3 {[%clk 0:02:52]} 15. Rb1 {[%clk 0:02:26]}  b6 {[%clk 0:02:52]} 16. Bh6 {[%clk 0:02:22]}  Bg7 {[%clk 0:02:49]} 17. Bxg7 {[%clk 0:02:20]}  Kxg7 {[%clk 0:02:50]} 18. Qb3 {[%clk 0:02:18]}  e6 {[%clk 0:02:47]} 19. Qc3+ {[%clk 0:02:16]}  Qf6 {[%clk 0:02:46]} 20. Qxf6+ {[%clk 0:02:10]}  Kxf6 {[%clk 0:02:47]} 21. Rfd1 {[%clk 0:02:07]}  Rfd8 {[%clk 0:02:47]} 22. Kf1 {[%clk 0:02:04]}  Rd4 {[%clk 0:02:47]} 23. Ke2 {[%clk 0:02:05]}  Rad8 {[%clk 0:02:47]} 24. Ke3 {[%clk 0:02:04]}  c4 {[%clk 0:02:43]} 25. Ke2 {[%clk 0:01:29]}  Rxd3 {[%clk 0:02:39]} 26. Rxd3 {[%clk 0:01:19]}  Rxd3 {[%clk 0:02:40]} 27. a4 {[%clk 0:01:15]}  Rb3 {[%clk 0:02:32]} 28. Rc1 {[%clk 0:01:11]}  Rb4 {[%clk 0:02:33]} 29. Ra1 {[%clk 0:01:08]}  Ke5 {[%clk 0:02:09]} 30. a5 {[%clk 0:01:08]}  b5 {[%clk 0:02:09]} 31. a6 {[%clk 0:01:08]}  Rb2+ {[%clk 0:02:06]} 32. Ke3 {[%clk 0:01:06]}  Rb3+ {[%clk 0:02:05]} 33. Ke2 {[%clk 0:01:06]}  Kd4 {[%clk 0:02:05]} 34. Rd1+ {[%clk 0:01:04]}  Rd3 {[%clk 0:02:06]} 35. Rb1 {[%clk 0:01:02]}  Kc5 {[%clk 0:02:06]} 36. f4 {[%clk 0:01:02]}  b4 {[%clk 0:02:06]} 0-1


[Site "https://www.chess.com"]

[Event "Titled Tuesday Blitz June 6 Late 2023"]
[White "Somalianwarrior2006"]
[Black "Kokoszczynski, Jan"]
[BlackFideId "1174460"]
[WhiteElo "2759"]
[BlackElo "2139"]
[Result "0-1"]
[Round "1"]
[TimeControl "180+2"]
[Date "2023.06.07"]
[WhiteClock "0:00:36"]
[BlackClock "0:01:41"]
[Board "58"]

1. e4 {[%clk 0:03:00]}  e5 {[%clk 0:02:59]} 2. Nf3 {[%clk 0:02:57]}  Nc6 {[%clk 0:02:59]} 3. Bc4 {[%clk 0:02:58]}  Bc5 {[%clk 0:02:58]} 4. d3 {[%clk 0:02:58]}  Nf6 {[%clk 0:02:58]} 5. c3 {[%clk 0:02:57]}  O-O {[%clk 0:02:53]} 6. O-O {[%clk 0:02:57]}  d6 {[%clk 0:02:48]} 7. h3 {[%clk 0:02:54]}  a5 {[%clk 0:02:47]} 8. a4 {[%clk 0:02:49]}  Be6 {[%clk 0:02:41]} 9. Nbd2 {[%clk 0:02:42]}  Re8 {[%clk 0:02:27]} 10. Bxe6 {[%clk 0:02:34]}  Rxe6 {[%clk 0:02:27]} 11. Nc4 {[%clk 0:02:33]}  h6 {[%clk 0:02:24]} 12. Re1 {[%clk 0:02:26]}  d5 {[%clk 0:02:10]} 13. exd5 {[%clk 0:02:24]}  Qxd5 {[%clk 0:02:10]} 14. Be3 {[%clk 0:01:53]}  Rd8 {[%clk 0:02:01]} 15. Bxc5 {[%clk 0:01:39]}  Qxc5 {[%clk 0:02:02]} 16. Ncxe5 {[%clk 0:00:35]}  Nxe5 {[%clk 0:01:57]} 17. Rxe5 {[%clk 0:00:35]}  Rxe5 {[%clk 0:01:49]} 18. d4 {[%clk 0:00:36]}  Red5 {[%clk 0:01:41]} 0-1


[Site "https://www.chess.com"]

[Event "Titled Tuesday Blitz June 6 Late 2023"]
[White "Klukin, Kirill"]
[Black "Alexikov, Alexander"]
[WhiteFideId "24199273"]
[BlackFideId "14103958"]
[WhiteElo "2344"]
[BlackElo "2186"]
[Result "1-0"]
[Round "1"]
[TimeControl "180+2"]
[Date "2023.06.07"]
[WhiteClock "0:00:12"]
[BlackClock "0:00:04"]
[Board "60"]

1. f4 {[%clk 0:02:58]}  Nf6 {[%clk 0:03:00]} 2. Nf3 {[%clk 0:02:58]}  d6 {[%clk 0:03:00]} 3. g3 {[%clk 0:02:59]}  g6 {[%clk 0:03:00]} 4. Bg2 {[%clk 0:02:59]}  Bg7 {[%clk 0:03:00]} 5. O-O {[%clk 0:03:00]}  O-O {[%clk 0:03:00]} 6. d3 {[%clk 0:03:01]}  c5 {[%clk 0:02:59]} 7. Nc3 {[%clk 0:03:01]}  Nc6 {[%clk 0:02:59]} 8. e4 {[%clk 0:03:02]}  Nd4 {[%clk 0:02:50]} 9. Nxd4 {[%clk 0:02:52]}  cxd4 {[%clk 0:02:49]} 10. Ne2 {[%clk 0:02:53]}  e5 {[%clk 0:02:42]} 11. h3 {[%clk 0:02:47]}  Ne8 {[%clk 0:02:32]} 12. g4 {[%clk 0:02:38]}  f6 {[%clk 0:02:23]} 13. Kh1 {[%clk 0:02:31]}  Nc7 {[%clk 0:02:16]} 14. c3 {[%clk 0:02:28]}  dxc3 {[%clk 0:02:13]} 15. bxc3 {[%clk 0:02:29]}  Kh8 {[%clk 0:02:04]} 16. d4 {[%clk 0:02:19]}  Be6 {[%clk 0:01:53]} 17. d5 {[%clk 0:01:48]}  Bd7 {[%clk 0:01:51]} 18. c4 {[%clk 0:01:40]}  Na6 {[%clk 0:01:50]} 19. fxe5 {[%clk 0:01:33]}  fxe5 {[%clk 0:01:45]} 20. Be3 {[%clk 0:01:33]}  b6 {[%clk 0:01:40]} 21. a4 {[%clk 0:01:22]}  Rc8 {[%clk 0:01:32]} 22. a5 {[%clk 0:01:14]}  Nc5 {[%clk 0:01:29]} 23. axb6 {[%clk 0:01:13]}  axb6 {[%clk 0:01:28]} 24. Rb1 {[%clk 0:01:08]}  Qc7 {[%clk 0:01:25]} 25. Qd2 {[%clk 0:00:59]}  Ra8 {[%clk 0:01:18]} 26. Qb4 {[%clk 0:00:56]}  Ra6 {[%clk 0:01:15]} 27. Rxf8+ {[%clk 0:00:52]}  Bxf8 {[%clk 0:01:13]} 28. Nc3 {[%clk 0:00:52]}  Kg7 {[%clk 0:01:08]} 29. Kh2 {[%clk 0:00:47]}  Be7 {[%clk 0:01:07]} 30. Nb5 {[%clk 0:00:45]}  Qd8 {[%clk 0:01:05]} 31. Qd2 {[%clk 0:00:40]}  Ra4 {[%clk 0:00:41]} 32. Qc2 {[%clk 0:00:37]}  Bxb5 {[%clk 0:00:33]} 33. Rxb5 {[%clk 0:00:37]}  Qa8 {[%clk 0:00:32]} 34. Rxb6 {[%clk 0:00:35]}  Ra2 {[%clk 0:00:31]} 35. Rb2 {[%clk 0:00:35]}  Rxb2 {[%clk 0:00:31]} 36. Qxb2 {[%clk 0:00:36]}  Qa4 {[%clk 0:00:30]} 37. Bxc5 {[%clk 0:00:33]}  dxc5 {[%clk 0:00:28]} 38. Qb7 {[%clk 0:00:23]}  Kf8 {[%clk 0:00:25]} 39. Qc8+ {[%clk 0:00:23]}  Kf7 {[%clk 0:00:25]} 40. Qe6+ {[%clk 0:00:24]}  Kf8 {[%clk 0:00:25]} 41. d6 {[%clk 0:00:22]}  Bh4 {[%clk 0:00:19]} 42. d7 {[%clk 0:00:18]}  Qd1 {[%clk 0:00:16]} 43. g5 {[%clk 0:00:09]}  Bxg5 {[%clk 0:00:11]} 44. Qxe5 {[%clk 0:00:10]}  Bh4 {[%clk 0:00:07]} 45. Qf4+ {[%clk 0:00:09]}  Ke7 {[%clk 0:00:05]} 46. Qxh4+ {[%clk 0:00:09]}  Kxd7 {[%clk 0:00:05]} 47. Qxh7+ {[%clk 0:00:10]}  Ke6 {[%clk 0:00:04]} 48. Qxg6+ {[%clk 0:00:10]}  Ke5 {[%clk 0:00:04]} 49. Qf5+ {[%clk 0:00:11]}  Kd6 {[%clk 0:00:04]} 50. Qd5+ {[%clk 0:00:12]} 1-0


[Site "https://www.chess.com"]

[Event "Titled Tuesday Blitz June 6 Late 2023"]
[White "Roienko, Artur"]
[Black "Pakleza, Zbigniew"]
[WhiteFideId "14136732"]
[BlackFideId "1119290"]
[WhiteElo "2062"]
[BlackElo "2410"]
[Result "0-1"]
[Round "1"]
[TimeControl "180+2"]
[Date "2023.06.07"]
[WhiteClock "0:01:49"]
[BlackClock "0:01:24"]
[Board "61"]

1. e4 {[%clk 0:02:59]}  d6 {[%clk 0:03:00]} 2. d4 {[%clk 0:02:59]}  Nf6 {[%clk 0:03:00]} 3. Nc3 {[%clk 0:02:59]}  c6 {[%clk 0:03:01]} 4. Bg5 {[%clk 0:02:59]}  Qb6 {[%clk 0:03:01]} 5. Qd2 {[%clk 0:02:58]}  Qxb2 {[%clk 0:03:02]} 6. Rb1 {[%clk 0:02:58]}  Qa3 {[%clk 0:03:02]} 7. Nf3 {[%clk 0:02:51]}  e6 {[%clk 0:02:57]} 8. Bd3 {[%clk 0:02:32]}  d5 {[%clk 0:02:21]} 9. O-O {[%clk 0:02:25]}  Bb4 {[%clk 0:02:10]} 10. Rb3 {[%clk 0:02:22]}  Qa5 {[%clk 0:02:10]} 11. a3 {[%clk 0:02:09]}  Bxc3 {[%clk 0:02:01]} 12. Rxc3 {[%clk 0:02:02]}  Nxe4 {[%clk 0:01:41]} 13. Bxe4 {[%clk 0:01:57]}  dxe4 {[%clk 0:01:42]} 14. Ne5 {[%clk 0:01:50]}  f6 {[%clk 0:01:26]} 15. Nc4 {[%clk 0:01:49]}  Qxg5 {[%clk 0:01:24]} 0-1


[Site "https://www.chess.com"]